[Event "XXII Rochefort Chess Masters"]
[Site "ROCHEFORT, France"]
[Date "2024.02.23"]
[Round "9.5"]
[White "Larkin, Vladyslav"]
[Black "Colin, Vincent"]
[Result "1-0"]
[TimeControl "1h30/40 - 30' + [30'']"]
[WhiteElo "2460"]
[BlackElo "2313"]

1. d4 {[%clk 01:20:09]} {[%emt 00:10:49]} Nf6 {[%clk 01:30:44]} {[%emt
00:00:16]} 2. Bf4 {[%emt 00:00:11]} d5 {[%clk 01:30:51]} {[%emt 00:00:18]} 3.
e3 {[%clk 01:20:56]} {[%emt 00:00:07]} c5 {[%clk 01:31:12]} {[%emt 00:00:09]} 4.
c3 {[%clk 01:21:04]} {[%emt 00:00:23]} Nc6 {[%emt 00:00:54]} 5. Nf3 {[%clk
01:20:51]} {[%emt 00:00:07]} Qb6 {[%clk 01:28:22]} {[%emt 00:03:31]} 6. Qb3
{[%clk 01:21:15]} {[%emt 00:00:05]} c4 {[%clk 01:28:43]} {[%emt 00:00:09]} 7.
Qc2 {[%emt 00:00:36]} Bf5 {[%clk 01:28:32]} {[%emt 00:00:08]} 8. Qc1 {[%clk
01:22:08]} {[%emt 00:00:05]} e6 {[%clk 01:28:16]} {[%emt 00:00:46]} 9. Nbd2
{[%emt 00:02:47]} Rc8 {[%clk 01:25:41]} {[%emt 00:00:25]} 10. Be2 {[%clk
01:22:26]} {[%emt 00:00:35]} h6 {[%clk 01:25:12]} {[%emt 00:01:00]} 11. Bd1
{[%emt 00:04:54]} Qd8 {[%clk 01:22:16]} {[%emt 00:03:14]} 12. Bc2 {[%clk
01:18:24]} {[%emt 00:00:20]} Bxc2 {[%clk 01:22:35]} {[%emt 00:00:10]} 13. Qxc2
{[%emt 00:00:29]} b5 {[%emt 00:18:54]} 14. O-O {[%emt 00:04:09]} Be7 {[%emt
00:07:24]} 15. Be5 {[%emt 00:09:30]} O-O {[%clk 01:16:18]} {[%emt 00:00:19]} 16.
Bxf6 {[%clk 00:45:31]} {[%emt 00:01:55]} Bxf6 {[%clk 01:16:40]} {[%emt
00:00:08]} 17. a3 {[%emt 00:11:43]} g5 {[%emt 00:05:14]} 18. h3 {[%clk
00:35:32]} {[%emt 00:00:48]} Bg7 {[%clk 01:09:59]} {[%emt 00:00:56]} 19. e4
{[%clk 00:35:10]} {[%emt 00:00:52]} f5 {[%clk 01:09:42]} {[%emt 00:00:46]} 20.
exf5 {[%clk 00:35:05]} {[%emt 00:00:36]} Rxf5 {[%clk 01:09:59]} {[%emt
00:00:13]} 21. Rfe1 {[%emt 00:11:40]} Qd7 {[%clk 01:01:46]} {[%emt 00:00:31]}
22. Nf1 {[%emt 00:02:13]} Rcf8 {[%clk 00:59:36]} {[%emt 00:01:16]} 23. Ng3
{[%emt 00:00:49]} Rxf3 {[%clk 00:59:08]} {[%emt 00:00:42]} 24. gxf3 {[%clk
00:32:10]} {[%emt 00:00:04]} Qf7 {[%emt 00:12:51]} 25. Re3 {[%clk 00:06:02]}
{[%emt 00:14:00]} e5 {[%clk 00:57:26]} {[%emt 00:02:29]} 26. dxe5 {[%emt
00:00:11]} Nxe5 {[%clk 00:57:43]} {[%emt 00:00:06]} 27. Qe2 {[%clk 00:05:01]}
{[%emt 00:01:58]} Nxf3+ {[%clk 00:57:12]} {[%emt 00:01:00]} 28. Kg2 {[%clk
00:05:29]} {[%emt 00:00:02]} Nh4+ {[%clk 00:57:04]} {[%emt 00:00:38]} 29. Kf1
{[%clk 00:05:45]} {[%emt 00:00:14]} d4 {[%clk 00:56:50]} {[%emt 00:00:43]} 30.
Re7 {[%emt 00:16:17]} Qd5 {[%clk 00:40:39]} {[%emt 00:00:54]} 31. Qe4 {[%clk
00:05:52]} {[%emt 00:00:24]} Qxe4 {[%clk 00:41:02]} {[%emt 00:00:07]} 32. Nxe4
{[%clk 00:05:36]} {[%emt 00:00:47]} Rf3 {[%clk 00:41:26]} {[%emt 00:00:05]} 33.
cxd4 {[%emt 00:01:33]} Bxd4 {[%clk 00:39:25]} {[%emt 00:02:09]} 34. Rd1 {[%emt
00:03:21]} Nf5 {[%clk 00:35:41]} {[%emt 00:01:22]} 35. Rd7 {[%emt 00:02:49]}
Bxb2 {[%emt 00:00:48]} 36. Rxa7 {[%emt 00:07:27]} Bd4 {[%clk 00:28:45]} {[%emt
00:02:14]} 37. Rd7 {[%emt 00:00:30]} c3 {[%clk 00:28:42]} {[%emt 00:00:06]} 38.
Ke2 {[%clk 00:00:54]} {[%emt 00:00:37]} c2 {[%emt 00:00:07]} 39. Rc1 {[%clk
00:01:01]} {[%emt 00:00:21]} Rf4 {[%clk 00:29:13]} {[%emt 00:00:24]} 40. Kd3
{[%emt 00:10:40]} Rf3+ {[%clk 00:14:42]} {[%emt 00:05:17]} 41. Kxc2 {[%clk
00:00:31]} {[%emt 00:00:33]} Bg7 {[%clk 00:10:10]} {[%emt 00:05:01]} 42. Kd2
{[%emt 00:06:08]} Nd4 {[%emt 00:02:28]} 43. Rc8+ {[%clk 00:18:13]} {[%emt
00:08:24]} Kh7 {[%clk 00:33:34]} {[%emt 00:03:56]} 44. Rcc7 {[%clk 00:18:37]}
{[%emt 00:00:06]} Ne6 {[%clk 00:33:22]} {[%emt 00:00:41]} 45. Ra7 {[%emt
00:11:07]} Rf5 {[%clk 00:20:08]} {[%emt 00:03:01]} 46. Ng3 {[%clk 00:18:40]}
{[%emt 00:00:32]} Rxf2+ {[%clk 00:19:10]} {[%emt 00:01:28]} 47. Ke1 {[%clk
00:19:07]} {[%emt 00:00:03]} Rf6 {[%clk 00:13:37]} {[%emt 00:06:03]} 48. Nh5
{[%clk 00:19:34]} {[%emt 00:00:03]} Rg6 {[%clk 00:12:58]} {[%emt 00:01:09]} 49.
Rd6 {[%emt 00:10:45]} Kg8 {[%clk 00:02:58]} {[%emt 00:00:01]} 50. Nxg7 {[%emt
00:00:21]} Rxg7 {[%clk 00:03:21]} {[%emt 00:00:03]} 51. Rxg7+ {[%clk 00:20:28]}
{[%emt 00:00:03]} Nxg7 {[%clk 00:03:44]} {[%emt 00:00:06]} 52. Rxh6 {[%clk
00:20:56]} {[%emt 00:00:02]} 1-0